[Event "Titled Tuesday Blitz December 06 Early 2022"]
[White "Chigaev, Maksim"]
[Black "Koellner, Ruben Gideon"]
[WhiteFideId "4108116"]
[BlackFideId "12993093"]
[WhiteElo "2542"]
[BlackElo "2303"]
[Result "1-0"]
[Round "11"]
[TimeControl "180+1"]
[Date "2022.12.07"]
[WhiteClock "0:00:33"]
[BlackClock "0:00:32"]

1. Nf3 {[%clk 0:03:00]}  d6 {[%clk 0:02:59]} 2. e4 {[%clk 0:03:00]}  Nf6 {[%clk 0:02:59]} 3. Nc3 {[%clk 0:02:57]}  e5 {[%clk 0:02:59]} 4. d4 {[%clk 0:02:57]}  Nbd7 {[%clk 0:02:59]} 5. Rg1 {[%clk 0:02:56]}  c6 {[%clk 0:02:58]} 6. g4 {[%clk 0:02:52]}  h6 {[%clk 0:02:58]} 7. Be3 {[%clk 0:02:48]}  b5 {[%clk 0:02:52]} 8. a3 {[%clk 0:02:47]}  Qa5 {[%clk 0:02:50]} 9. Nd2 {[%clk 0:02:41]}  Qc7 {[%clk 0:02:48]} 10. h4 {[%clk 0:02:36]}  Bb7 {[%clk 0:02:46]} 11. g5 {[%clk 0:02:33]}  hxg5 {[%clk 0:02:47]} 12. hxg5 {[%clk 0:02:33]}  Nh5 {[%clk 0:02:47]} 13. g6 {[%clk 0:02:28]}  fxg6 {[%clk 0:02:48]} 14. Rxg6 {[%clk 0:02:25]}  O-O-O {[%clk 0:02:48]} 15. d5 {[%clk 0:02:18]}  a6 {[%clk 0:02:43]} 16. dxc6 {[%clk 0:02:18]}  Bxc6 {[%clk 0:02:44]} 17. Nd5 {[%clk 0:02:18]}  Qb7 {[%clk 0:02:34]} 18. c4 {[%clk 0:02:15]}  Nhf6 {[%clk 0:02:24]} 19. Nb3 {[%clk 0:02:11]}  bxc4 {[%clk 0:02:17]} 20. Na5 {[%clk 0:02:09]}  Qa8 {[%clk 0:02:14]} 21. Rc1 {[%clk 0:01:36]}  Bxd5 {[%clk 0:02:06]} 22. exd5 {[%clk 0:01:34]}  Qxd5 {[%clk 0:02:06]} 23. Rxc4+ {[%clk 0:01:20]}  Nc5 {[%clk 0:02:06]} 24. Qxd5 {[%clk 0:01:13]}  Nxd5 {[%clk 0:02:05]} 25. b4 {[%clk 0:01:13]}  Nxe3 {[%clk 0:01:43]} 26. fxe3 {[%clk 0:01:12]}  Rh6 {[%clk 0:01:33]} 27. Rxh6 {[%clk 0:01:08]}  gxh6 {[%clk 0:01:34]} 28. bxc5 {[%clk 0:01:09]}  dxc5 {[%clk 0:01:35]} 29. Rg4 {[%clk 0:01:00]}  Kc7 {[%clk 0:01:30]} 30. Rg6 {[%clk 0:00:52]}  Rd6 {[%clk 0:01:05]} 31. Rxd6 {[%clk 0:00:48]}  Kxd6 {[%clk 0:01:06]} 32. Bxa6 {[%clk 0:00:47]}  Kc7 {[%clk 0:01:05]} 33. Be2 {[%clk 0:00:46]}  Kb6 {[%clk 0:00:59]} 34. Nc4+ {[%clk 0:00:43]}  Kb5 {[%clk 0:00:59]} 35. Nxe5+ {[%clk 0:00:39]}  Ka4 {[%clk 0:00:59]} 36. Nc4 {[%clk 0:00:39]}  Kb3 {[%clk 0:00:55]} 37. Kd2 {[%clk 0:00:40]}  Bg7 {[%clk 0:00:54]} 38. Kd3 {[%clk 0:00:37]}  Ka4 {[%clk 0:00:45]} 39. Bd1+ {[%clk 0:00:37]}  Kb5 {[%clk 0:00:45]} 40. Bh5 {[%clk 0:00:38]}  Ka4 {[%clk 0:00:36]} 41. Be8+ {[%clk 0:00:37]}  Kb3 {[%clk 0:00:37]} 42. a4 {[%clk 0:00:37]}  Kb4 {[%clk 0:00:37]} 43. a5 {[%clk 0:00:37]}  Be5 {[%clk 0:00:33]} 44. Nxe5 {[%clk 0:00:33]}  Kxa5 {[%clk 0:00:32]} 45. Kc4 {[%clk 0:00:33]} 1-0


[Site "https://www.chess.com"]

[Event "Titled Tuesday Blitz December 06 Early 2022"]
[White "Cramling Bellon, Anna"]
[Black "Tay, Junior"]
[WhiteFideId "32009232"]
[BlackFideId "5800439"]
[WhiteElo "1972"]
[BlackElo "2216"]
[Result "0-1"]
[Round "11"]
[TimeControl "180+1"]
[Date "2022.12.07"]
[WhiteClock "0:00:01"]
[BlackClock "0:00:36"]

1. d4 {[%clk 0:03:00]}  Nf6 {[%clk 0:02:59]} 2. c4 {[%clk 0:03:01]}  g6 {[%clk 0:02:57]} 3. Nc3 {[%clk 0:03:00]}  Bg7 {[%clk 0:02:58]} 4. e4 {[%clk 0:03:01]}  d6 {[%clk 0:02:59]} 5. h3 {[%clk 0:03:01]}  O-O {[%clk 0:03:00]} 6. Bg5 {[%clk 0:03:02]}  c5 {[%clk 0:03:00]} 7. d5 {[%clk 0:03:02]}  b5 {[%clk 0:03:01]} 8. cxb5 {[%clk 0:03:00]}  a6 {[%clk 0:03:01]} 9. a4 {[%clk 0:03:00]}  Qa5 {[%clk 0:03:00]} 10. Bd2 {[%clk 0:02:58]}  Nbd7 {[%clk 0:03:00]} 11. Nf3 {[%clk 0:02:58]}  axb5 {[%clk 0:02:56]} 12. Bxb5 {[%clk 0:02:44]}  Ba6 {[%clk 0:02:55]} 13. O-O {[%clk 0:02:38]}  Rfb8 {[%clk 0:02:55]} 14. Bc6 {[%clk 0:01:25]}  Bxf1 {[%clk 0:01:54]} 15. Nb5 {[%clk 0:01:15]}  Qd8 {[%clk 0:01:39]} 16. Qxf1 {[%clk 0:00:59]}  Nxe4 {[%clk 0:01:38]} 17. Bxa8 {[%clk 0:00:41]}  Rxa8 {[%clk 0:01:37]} 18. Bc3 {[%clk 0:00:39]}  Nxc3 {[%clk 0:01:28]} 19. bxc3 {[%clk 0:00:40]}  Ra5 {[%clk 0:01:17]} 20. Ra3 {[%clk 0:00:29]}  Nb6 {[%clk 0:01:12]} 21. Qd1 {[%clk 0:00:27]}  Qa8 {[%clk 0:01:05]} 22. Qe2 {[%clk 0:00:10]}  Kf8 {[%clk 0:01:02]} 23. c4 {[%clk 0:00:04]}  Rxa4 {[%clk 0:01:01]} 24. Re3 {[%clk 0:00:04]}  Qd8 {[%clk 0:00:51]} 25. Ng5 {[%clk 0:00:02]}  h6 {[%clk 0:00:47]} 26. Nxf7 {[%clk 0:00:02]}  Kxf7 {[%clk 0:00:47]} 27. Qf3+ {[%clk 0:00:02]}  Kg8 {[%clk 0:00:48]} 28. Qg4 {[%clk 0:00:02]}  Kh7 {[%clk 0:00:47]} 29. Qe6 {[%clk 0:00:02]}  Ra1+ {[%clk 0:00:37]} 30. Kh2 {[%clk 0:00:02]}  Qf8 {[%clk 0:00:38]} 31. Rg3 {[%clk 0:00:02]}  Be5 {[%clk 0:00:36]} 32. Qxg6+ {[%clk 0:00:01]}  Kh8 {[%clk 0:00:36]} 0-1


[Site "https://www.chess.com"]

[Event "Titled Tuesday Blitz December 06 Early 2022"]
[White "D`Arruda, Ricardo D."]
[Black "Kim, Sergey"]
[WhiteFideId "100692"]
[BlackFideId "13700570"]
[WhiteElo "2454"]
[BlackElo "2611"]
[Result "1-0"]
[Round "11"]
[TimeControl "180+1"]
[Date "2022.12.07"]
[WhiteClock "0:00:13"]
[BlackClock "0:00:01"]

1. d4 {[%clk 0:02:49]}  Nf6 {[%clk 0:02:59]} 2. Nf3 {[%clk 0:02:48]}  g6 {[%clk 0:02:59]} 3. g3 {[%clk 0:02:48]}  Bg7 {[%clk 0:02:59]} 4. Bg2 {[%clk 0:02:49]}  O-O {[%clk 0:02:59]} 5. O-O {[%clk 0:02:49]}  d6 {[%clk 0:03:00]} 6. Nc3 {[%clk 0:02:49]}  c6 {[%clk 0:02:58]} 7. e4 {[%clk 0:02:49]}  Qc7 {[%clk 0:02:58]} 8. a4 {[%clk 0:02:47]}  a5 {[%clk 0:02:58]} 9. Re1 {[%clk 0:02:45]}  e5 {[%clk 0:02:58]} 10. h3 {[%clk 0:02:41]}  Na6 {[%clk 0:02:54]} 11. Be3 {[%clk 0:02:38]}  Nb4 {[%clk 0:02:51]} 12. Qd2 {[%clk 0:02:35]}  Re8 {[%clk 0:02:49]} 13. Rad1 {[%clk 0:02:32]}  Be6 {[%clk 0:02:46]} 14. Ng5 {[%clk 0:02:26]}  Bc4 {[%clk 0:02:45]} 15. b3 {[%clk 0:02:18]}  Ba6 {[%clk 0:02:44]} 16. f4 {[%clk 0:02:08]}  h6 {[%clk 0:02:31]} 17. Nf3 {[%clk 0:02:07]}  exf4 {[%clk 0:02:24]} 18. gxf4 {[%clk 0:02:01]}  Nxe4 {[%clk 0:02:19]} 19. Nxe4 {[%clk 0:01:59]}  Rxe4 {[%clk 0:02:19]} 20. f5 {[%clk 0:01:50]}  g5 {[%clk 0:02:07]} 21. Nxg5 {[%clk 0:01:41]}  Rxe3 {[%clk 0:02:06]} 22. Qxe3 {[%clk 0:01:41]}  hxg5 {[%clk 0:02:06]} 23. Qxg5 {[%clk 0:01:41]}  f6 {[%clk 0:02:03]} 24. Qg4 {[%clk 0:01:31]}  d5 {[%clk 0:01:35]} 25. Re6 {[%clk 0:01:25]}  Nxc2 {[%clk 0:01:17]} 26. Rd2 {[%clk 0:01:16]}  Nb4 {[%clk 0:01:09]} 27. Rxf6 {[%clk 0:01:15]}  Re8 {[%clk 0:01:01]} 28. Rg6 {[%clk 0:01:11]}  Nd3 {[%clk 0:00:19]} 29. f6 {[%clk 0:01:07]}  Re1+ {[%clk 0:00:18]} 30. Bf1 {[%clk 0:01:01]}  Rxf1+ {[%clk 0:00:18]} 31. Kxf1 {[%clk 0:01:01]}  Ne5+ {[%clk 0:00:18]} 32. Kg1 {[%clk 0:00:53]}  Nxg4 {[%clk 0:00:18]} 33. Rxg7+ {[%clk 0:00:53]}  Qxg7 {[%clk 0:00:17]} 34. fxg7 {[%clk 0:00:54]}  Nf6 {[%clk 0:00:16]} 35. Rg2 {[%clk 0:00:53]}  Bd3 {[%clk 0:00:15]} 36. Kf2 {[%clk 0:00:49]}  Be4 {[%clk 0:00:14]} 37. Rg5 {[%clk 0:00:47]}  Ne8 {[%clk 0:00:14]} 38. Re5 {[%clk 0:00:46]}  Nxg7 {[%clk 0:00:13]} 39. Re7 {[%clk 0:00:47]}  b5 {[%clk 0:00:13]} 40. Ra7 {[%clk 0:00:41]}  bxa4 {[%clk 0:00:12]} 41. bxa4 {[%clk 0:00:42]}  Nf5 {[%clk 0:00:12]} 42. Rxa5 {[%clk 0:00:42]}  Nxd4 {[%clk 0:00:12]} 43. Ra8+ {[%clk 0:00:42]}  Kf7 {[%clk 0:00:12]} 44. a5 {[%clk 0:00:42]}  Nb5 {[%clk 0:00:09]} 45. a6 {[%clk 0:00:43]}  c5 {[%clk 0:00:09]} 46. a7 {[%clk 0:00:42]}  d4 {[%clk 0:00:08]} 47. Rc8 {[%clk 0:00:36]}  Nxa7 {[%clk 0:00:08]} 48. Rc7+ {[%clk 0:00:37]}  Ke6 {[%clk 0:00:07]} 49. Rxa7 {[%clk 0:00:38]}  Kd5 {[%clk 0:00:07]} 50. h4 {[%clk 0:00:35]}  c4 {[%clk 0:00:08]} 51. h5 {[%clk 0:00:35]}  c3 {[%clk 0:00:07]} 52. Ke2 {[%clk 0:00:33]}  d3+ {[%clk 0:00:06]} 53. Ke3 {[%clk 0:00:33]}  d2 {[%clk 0:00:04]} 54. Rd7+ {[%clk 0:00:30]}  Ke5 {[%clk 0:00:03]} 55. h6 {[%clk 0:00:23]}  Bf5 {[%clk 0:00:02]} 56. Rd8 {[%clk 0:00:15]}  Kf6 {[%clk 0:00:01]} 57. Rd5 {[%clk 0:00:13]} 1-0


[Site "https://www.chess.com"]

[Event "Titled Tuesday Blitz December 06 Early 2022"]
[White "Estrada Nieto, Julian"]
[Black "Volkov, Maksim"]
[WhiteFideId "5101018"]
[BlackFideId "54123070"]
[WhiteElo "2195"]
[BlackElo "2257"]
[Result "0-1"]
[Round "11"]
[TimeControl "180+1"]
[Date "2022.12.07"]
[WhiteClock "0:00:01"]
[BlackClock "0:00:04"]

1. e4 {[%clk 0:03:00]}  c5 {[%clk 0:02:59]} 2. Nf3 {[%clk 0:03:00]}  d6 {[%clk 0:02:59]} 3. Bb5+ {[%clk 0:03:00]}  Nd7 {[%clk 0:02:58]} 4. d4 {[%clk 0:02:59]}  cxd4 {[%clk 0:02:57]} 5. Qxd4 {[%clk 0:03:00]}  a6 {[%clk 0:02:56]} 6. Bxd7+ {[%clk 0:03:00]}  Bxd7 {[%clk 0:02:56]} 7. Nc3 {[%clk 0:03:01]}  e6 {[%clk 0:02:54]} 8. O-O {[%clk 0:02:48]}  Bc6 {[%clk 0:02:50]} 9. a4 {[%clk 0:02:45]}  Nf6 {[%clk 0:02:48]} 10. Bg5 {[%clk 0:02:36]}  Be7 {[%clk 0:02:47]} 11. a5 {[%clk 0:02:26]}  h6 {[%clk 0:02:43]} 12. Bh4 {[%clk 0:02:24]}  O-O {[%clk 0:02:31]} 13. Rfe1 {[%clk 0:02:16]}  Qc7 {[%clk 0:02:26]} 14. Qd3 {[%clk 0:01:52]}  Ng4 {[%clk 0:02:11]} 15. Bxe7 {[%clk 0:01:50]}  Qxe7 {[%clk 0:02:10]} 16. Rad1 {[%clk 0:01:45]}  Rad8 {[%clk 0:02:09]} 17. Qd4 {[%clk 0:01:42]}  Qc7 {[%clk 0:02:03]} 18. b4 {[%clk 0:01:35]}  Nf6 {[%clk 0:01:53]} 19. Qc4 {[%clk 0:01:18]}  Qe7 {[%clk 0:01:46]} 20. Qd3 {[%clk 0:01:10]}  Rd7 {[%clk 0:01:37]} 21. h3 {[%clk 0:01:08]}  Rc8 {[%clk 0:01:37]} 22. Nd4 {[%clk 0:01:01]}  Rdc7 {[%clk 0:01:32]} 23. Nd5 {[%clk 0:00:41]}  Bxd5 {[%clk 0:01:10]} 24. exd5 {[%clk 0:00:41]}  Nxd5 {[%clk 0:00:57]} 25. Nf5 {[%clk 0:00:18]}  Qd8 {[%clk 0:00:55]} 26. Qg3 {[%clk 0:00:14]}  exf5 {[%clk 0:00:54]} 27. Rxd5 {[%clk 0:00:14]}  Rxc2 {[%clk 0:00:55]} 28. Rxd6 {[%clk 0:00:13]}  Qg5 {[%clk 0:00:52]} 29. Qxg5 {[%clk 0:00:10]}  hxg5 {[%clk 0:00:53]} 30. Rd7 {[%clk 0:00:11]}  R8c7 {[%clk 0:00:45]} 31. Re8+ {[%clk 0:00:10]}  Kh7 {[%clk 0:00:44]} 32. Ree7 {[%clk 0:00:11]}  Rxd7 {[%clk 0:00:30]} 33. Rxd7 {[%clk 0:00:11]}  Rb2 {[%clk 0:00:30]} 34. Rxb7 {[%clk 0:00:10]}  Kg6 {[%clk 0:00:31]} 35. Rb6+ {[%clk 0:00:10]}  f6 {[%clk 0:00:31]} 36. g3 {[%clk 0:00:09]}  f4 {[%clk 0:00:30]} 37. gxf4 {[%clk 0:00:09]}  gxf4 {[%clk 0:00:30]} 38. Kg2 {[%clk 0:00:10]}  Kf5 {[%clk 0:00:30]} 39. Rb7 {[%clk 0:00:08]}  g5 {[%clk 0:00:28]} 40. b5 {[%clk 0:00:06]}  axb5 {[%clk 0:00:26]} 41. a6 {[%clk 0:00:06]}  Kg6 {[%clk 0:00:19]} 42. a7 {[%clk 0:00:06]}  Ra2 {[%clk 0:00:19]} 43. Kf3 {[%clk 0:00:06]}  b4 {[%clk 0:00:19]} 44. Ke4 {[%clk 0:00:06]}  b3 {[%clk 0:00:18]} 45. f3 {[%clk 0:00:06]}  b2 {[%clk 0:00:18]} 46. Kd3 {[%clk 0:00:07]}  Kh5 {[%clk 0:00:12]} 47. Rh7+ {[%clk 0:00:06]}  Kg6 {[%clk 0:00:12]} 48. Rb7 {[%clk 0:00:06]}  Rxa7 {[%clk 0:00:12]} 49. Rxb2 {[%clk 0:00:06]}  Kh5 {[%clk 0:00:12]} 50. Rb6 {[%clk 0:00:04]}  Rf7 {[%clk 0:00:10]} 51. Rb8 {[%clk 0:00:03]}  Kh4 {[%clk 0:00:09]} 52. Rh8+ {[%clk 0:00:03]}  Kg3 {[%clk 0:00:09]} 53. Ke4 {[%clk 0:00:04]}  Ra7 {[%clk 0:00:06]} 54. Rh6 {[%clk 0:00:03]}  Ra4+ {[%clk 0:00:02]} 55. Kf5 {[%clk 0:00:03]}  Kxf3 {[%clk 0:00:03]} 56. Kxf6 {[%clk 0:00:03]}  Ra5 {[%clk 0:00:04]} 57. Rg6 {[%clk 0:00:02]}  Kg3 {[%clk 0:00:04]} 58. h4 {[%clk 0:00:02]}  Kxh4 {[%clk 0:00:03]} 59. Rh6+ {[%clk 0:00:02]}  Kg4 {[%clk 0:00:03]} 60. Rh8 {[%clk 0:00:03]}  f3 {[%clk 0:00:03]} 61. Rb8 {[%clk 0:00:02]}  Kg3 {[%clk 0:00:03]} 62. Rb1 {[%clk 0:00:02]}  g4 {[%clk 0:00:03]} 63. Rb3 {[%clk 0:00:03]}  Kg2 {[%clk 0:00:03]} 64. Rb1 {[%clk 0:00:03]}  f2 {[%clk 0:00:03]} 65. Rb2 {[%clk 0:00:03]}  Kg1 {[%clk 0:00:03]} 66. Rb1+ {[%clk 0:00:03]}  f1=Q+ {[%clk 0:00:03]} 67. Kg6 {[%clk 0:00:01]}  Qxb1+ {[%clk 0:00:03]} 68. Kh6 {[%clk 0:00:01]}  Qb6+ {[%clk 0:00:03]} 69. Kg7 {[%clk 0:00:01]}  Ra7+ {[%clk 0:00:04]} 70. Kf8 {[%clk 0:00:01]}  Qb8# {[%clk 0:00:04]} 0-1


[Site "https://www.chess.com"]

[Event "Titled Tuesday Blitz December 06 Early 2022"]
[White "Garv Gaur"]
[Black "Laylo, Darwin"]
[WhiteFideId "45030839"]
[BlackFideId "5201330"]
[WhiteElo "2056"]
[BlackElo "2335"]
[Result "1-0"]
[Round "11"]
[TimeControl "180+1"]
[Date "2022.12.06"]
[WhiteClock "0:02:02"]
[BlackClock "0:01:54"]

1. d4 {[%clk 0:02:52]}  Nf6 {[%clk 0:03:00]} 2. Nf3 {[%clk 0:02:52]}  g6 {[%clk 0:03:01]} 3. c4 {[%clk 0:02:52]}  d5 {[%clk 0:03:01]} 4. cxd5 {[%clk 0:02:52]}  Bg7 {[%clk 0:03:01]} 5. g3 {[%clk 0:02:52]}  O-O {[%clk 0:03:01]} 6. Bg2 {[%clk 0:02:52]}  Nxd5 {[%clk 0:03:00]} 7. O-O {[%clk 0:02:52]}  c5 {[%clk 0:03:00]} 8. Nc3 {[%clk 0:02:48]}  cxd4 {[%clk 0:02:59]} 9. Nxd4 {[%clk 0:02:44]}  Nxc3 {[%clk 0:02:58]} 10. bxc3 {[%clk 0:02:45]}  Nc6 {[%clk 0:02:57]} 11. Nxc6 {[%clk 0:02:44]}  bxc6 {[%clk 0:02:57]} 12. Qxd8 {[%clk 0:02:42]}  Rxd8 {[%clk 0:02:57]} 13. Bxc6 {[%clk 0:02:43]}  Bxc3 {[%clk 0:02:58]} 14. Bxa8 {[%clk 0:02:42]}  Bxa1 {[%clk 0:02:55]} 15. Be3 {[%clk 0:02:38]}  Bh3 {[%clk 0:02:51]} 16. Bg2 {[%clk 0:02:37]}  Bxg2 {[%clk 0:02:51]} 17. Kxg2 {[%clk 0:02:38]}  Bf6 {[%clk 0:02:47]} 18. Bxa7 {[%clk 0:02:37]}  Ra8 {[%clk 0:02:48]} 19. Bc5 {[%clk 0:02:35]}  Rxa2 {[%clk 0:02:48]} 20. e3 {[%clk 0:02:36]}  h5 {[%clk 0:02:44]} 21. h4 {[%clk 0:02:35]}  Rc2 {[%clk 0:02:41]} 22. Bb6 {[%clk 0:02:35]}  e5 {[%clk 0:02:41]} 23. Rd1 {[%clk 0:02:34]}  e4 {[%clk 0:02:40]} 24. Bd4 {[%clk 0:02:32]}  Be7 {[%clk 0:02:38]} 25. Rb1 {[%clk 0:02:30]}  f5 {[%clk 0:02:31]} 26. Rb2 {[%clk 0:02:30]}  Rc8 {[%clk 0:02:27]} 27. Rb7 {[%clk 0:02:29]}  Kf7 {[%clk 0:02:28]} 28. Bb2 {[%clk 0:02:25]}  Ke8 {[%clk 0:02:19]} 29. Rb6 {[%clk 0:02:23]}  Rc2 {[%clk 0:02:18]} 30. Bd4 {[%clk 0:02:18]}  Kf7 {[%clk 0:02:17]} 31. Rb2 {[%clk 0:02:16]}  Rc7 {[%clk 0:02:15]} 32. Rb6 {[%clk 0:02:13]}  Ba3 {[%clk 0:02:09]} 33. Rf6+ {[%clk 0:02:11]}  Ke7 {[%clk 0:02:05]} 34. Rxg6 {[%clk 0:02:11]}  Rc2 {[%clk 0:02:03]} 35. Rg5 {[%clk 0:02:08]}  Ke6 {[%clk 0:02:03]} 36. Rxh5 {[%clk 0:02:07]}  Bb4 {[%clk 0:01:57]} 37. Rh6+ {[%clk 0:02:07]}  Ke7 {[%clk 0:01:57]} 38. Rf6 {[%clk 0:02:07]}  Bc5 {[%clk 0:01:54]} 39. Rxf5 {[%clk 0:02:02]}  Bxd4 {[%clk 0:01:54]} 40. exd4 {[%clk 0:02:03]}  Kd6 {[%clk 0:01:54]} 41. Re5 {[%clk 0:02:03]}  Re2 {[%clk 0:01:54]} 42. Kf1 {[%clk 0:02:02]} 1-0


[Site "https://www.chess.com"]

[Event "Titled Tuesday Blitz December 06 Early 2022"]
[White "Grot, Blazej"]
[Black "Saravana, Krishnan P."]
[WhiteFideId "21835845"]
[BlackFideId "5018382"]
[WhiteElo "1823"]
[BlackElo "2190"]
[Result "1-0"]
[Round "11"]
[TimeControl "180+1"]
[Date "2022.12.07"]
[WhiteClock "0:01:34"]
[BlackClock "0:01:15"]

1. e4 {[%clk 0:02:47]}  c6 {[%clk 0:02:46]} 2. Nc3 {[%clk 0:02:34]}  d5 {[%clk 0:02:45]} 3. Qe2 {[%clk 0:02:34]}  dxe4 {[%clk 0:02:39]} 4. Nxe4 {[%clk 0:02:34]}  Nf6 {[%clk 0:02:38]} 5. Nxf6+ {[%clk 0:02:34]}  gxf6 {[%clk 0:02:38]} 6. Nf3 {[%clk 0:02:35]}  Bf5 {[%clk 0:02:35]} 7. d4 {[%clk 0:02:35]}  Nd7 {[%clk 0:02:35]} 8. c3 {[%clk 0:02:35]}  e6 {[%clk 0:02:35]} 9. Bf4 {[%clk 0:02:36]}  Qb6 {[%clk 0:02:34]} 10. g3 {[%clk 0:02:34]}  O-O-O {[%clk 0:02:31]} 11. Bg2 {[%clk 0:02:35]}  h5 {[%clk 0:02:20]} 12. a4 {[%clk 0:02:34]}  a5 {[%clk 0:02:09]} 13. O-O {[%clk 0:02:33]}  Bh6 {[%clk 0:01:59]} 14. Bxh6 {[%clk 0:02:33]}  Rxh6 {[%clk 0:01:59]} 15. h4 {[%clk 0:02:33]}  Rg8 {[%clk 0:01:56]} 16. Qe3 {[%clk 0:02:33]}  Rhg6 {[%clk 0:01:55]} 17. b4 {[%clk 0:02:33]}  e5 {[%clk 0:01:43]} 18. bxa5 {[%clk 0:02:32]}  Qxa5 {[%clk 0:01:43]} 19. dxe5 {[%clk 0:02:31]}  fxe5 {[%clk 0:01:43]} 20. Rfd1 {[%clk 0:02:24]}  f6 {[%clk 0:01:40]} 21. Qd2 {[%clk 0:02:15]}  Qc5 {[%clk 0:01:38]} 22. a5 {[%clk 0:02:12]}  Rxg3 {[%clk 0:01:38]} 23. Ne1 {[%clk 0:02:07]}  Qxc3 {[%clk 0:01:26]} 24. fxg3 {[%clk 0:02:02]}  Qxg3 {[%clk 0:01:26]} 25. a6 {[%clk 0:01:54]}  bxa6 {[%clk 0:01:19]} 26. Rxa6 {[%clk 0:01:52]}  Nb8 {[%clk 0:01:19]} 27. Ra8 {[%clk 0:01:47]}  Bh3 {[%clk 0:01:16]} 28. Rxb8+ {[%clk 0:01:34]}  Kxb8 {[%clk 0:01:15]} 29. Qd6+ {[%clk 0:01:34]} 1-0


[Site "https://www.chess.com"]

[Event "Titled Tuesday Blitz December 06 Early 2022"]
[White "Hansen, Eric"]
[Black "Sjugirov, Sanan"]
[WhiteFideId "2606771"]
[BlackFideId "4189302"]
[WhiteElo "2568"]
[BlackElo "2613"]
[Result "0-1"]
[Round "11"]
[TimeControl "180+1"]
[Date "2022.12.06"]
[WhiteClock "0:00:02"]
[BlackClock "0:01:09"]

1. d4 {[%clk 0:03:00]}  Nf6 {[%clk 0:02:59]} 2. Nf3 {[%clk 0:02:58]}  d5 {[%clk 0:02:59]} 3. g3 {[%clk 0:02:55]}  c6 {[%clk 0:02:55]} 4. Bg2 {[%clk 0:02:55]}  Bf5 {[%clk 0:02:54]} 5. O-O {[%clk 0:02:53]}  e6 {[%clk 0:02:54]} 6. c4 {[%clk 0:02:50]}  Nbd7 {[%clk 0:02:53]} 7. Nc3 {[%clk 0:02:49]}  dxc4 {[%clk 0:02:49]} 8. Nh4 {[%clk 0:02:48]}  Bg4 {[%clk 0:02:45]} 9. h3 {[%clk 0:02:48]}  Bh5 {[%clk 0:02:44]} 10. g4 {[%clk 0:02:43]}  Bg6 {[%clk 0:02:44]} 11. Nxg6 {[%clk 0:02:37]}  hxg6 {[%clk 0:02:44]} 12. e4 {[%clk 0:02:38]}  e5 {[%clk 0:02:36]} 13. g5 {[%clk 0:02:17]}  Nh5 {[%clk 0:02:35]} 14. Ne2 {[%clk 0:02:18]}  Be7 {[%clk 0:02:31]} 15. h4 {[%clk 0:02:14]}  b5 {[%clk 0:02:27]} 16. a4 {[%clk 0:02:13]}  a6 {[%clk 0:02:25]} 17. Be3 {[%clk 0:02:09]}  O-O {[%clk 0:02:23]} 18. Qc2 {[%clk 0:02:05]}  Qc7 {[%clk 0:02:20]} 19. Rad1 {[%clk 0:02:02]}  exd4 {[%clk 0:02:18]} 20. Nxd4 {[%clk 0:01:58]}  Ne5 {[%clk 0:02:18]} 21. Bh3 {[%clk 0:01:26]}  c5 {[%clk 0:02:12]} 22. Ne2 {[%clk 0:00:22]}  Nf3+ {[%clk 0:02:09]} 23. Kg2 {[%clk 0:00:22]}  Nxh4+ {[%clk 0:02:10]} 24. Kh1 {[%clk 0:00:23]}  Nf3 {[%clk 0:02:10]} 25. Kg2 {[%clk 0:00:23]}  Qh2+ {[%clk 0:02:08]} 26. Kxf3 {[%clk 0:00:24]}  Qxh3+ {[%clk 0:02:09]} 27. Ng3 {[%clk 0:00:24]}  Nxg3 {[%clk 0:02:06]} 28. fxg3 {[%clk 0:00:24]}  f6 {[%clk 0:02:06]} 29. Ke2 {[%clk 0:00:17]}  Qg4+ {[%clk 0:02:04]} 30. Kd2 {[%clk 0:00:16]}  Rad8+ {[%clk 0:01:57]} 31. Kc1 {[%clk 0:00:16]}  Rxd1+ {[%clk 0:01:56]} 32. Rxd1 {[%clk 0:00:16]}  Qxg3 {[%clk 0:01:57]} 33. Qe2 {[%clk 0:00:14]}  fxg5 {[%clk 0:01:45]} 34. Rd7 {[%clk 0:00:09]}  Qe5 {[%clk 0:01:37]} 35. Bd2 {[%clk 0:00:09]}  Bf6 {[%clk 0:01:26]} 36. Bc3 {[%clk 0:00:09]}  Qf4+ {[%clk 0:01:26]} 37. Bd2 {[%clk 0:00:10]}  Qe5 {[%clk 0:01:20]} 38. Bc3 {[%clk 0:00:09]}  Qe6 {[%clk 0:01:20]} 39. Rd5 {[%clk 0:00:06]}  Bxc3 {[%clk 0:01:20]} 40. bxc3 {[%clk 0:00:07]}  Qf6 {[%clk 0:01:19]} 41. Qd2 {[%clk 0:00:03]}  Qf1+ {[%clk 0:01:17]} 42. Qd1 {[%clk 0:00:03]}  g4 {[%clk 0:01:13]} 43. Rg5 {[%clk 0:00:01]}  Qf4+ {[%clk 0:01:12]} 44. Qd2 {[%clk 0:00:02]}  Qxe4 {[%clk 0:01:10]} 45. Kb2 {[%clk 0:00:02]}  b4 {[%clk 0:01:09]} 0-1


[Site "https://www.chess.com"]

[Event "Titled Tuesday Blitz December 06 Early 2022"]
[White "Hirneise, Jens"]
[Black "Matveeva, Olga"]
[WhiteFideId "24614734"]
[BlackFideId "24107018"]
[WhiteElo "2345"]
[BlackElo "2056"]
[Result "1-0"]
[Round "11"]
[TimeControl "180+1"]
[Date "2022.12.07"]
[WhiteClock "0:00:35"]
[BlackClock "0:00:17"]

1. d4 {[%clk 0:02:55]}  d5 {[%clk 0:02:59]} 2. c4 {[%clk 0:02:52]}  e6 {[%clk 0:02:59]} 3. Nc3 {[%clk 0:02:51]}  Nf6 {[%clk 0:02:59]} 4. cxd5 {[%clk 0:02:49]}  exd5 {[%clk 0:02:59]} 5. Bg5 {[%clk 0:02:49]}  Be7 {[%clk 0:02:59]} 6. e3 {[%clk 0:02:47]}  Nbd7 {[%clk 0:02:59]} 7. Qc2 {[%clk 0:02:48]}  c6 {[%clk 0:02:59]} 8. Bd3 {[%clk 0:02:48]}  Nh5 {[%clk 0:03:00]} 9. Bxe7 {[%clk 0:02:42]}  Qxe7 {[%clk 0:03:01]} 10. Nge2 {[%clk 0:02:40]}  g6 {[%clk 0:02:55]} 11. g4 {[%clk 0:02:30]}  Ng7 {[%clk 0:02:43]} 12. h4 {[%clk 0:02:23]}  h5 {[%clk 0:02:41]} 13. g5 {[%clk 0:02:15]}  Nb6 {[%clk 0:02:39]} 14. Nf4 {[%clk 0:02:05]}  Bf5 {[%clk 0:02:36]} 15. a4 {[%clk 0:02:01]}  Nc4 {[%clk 0:02:31]} 16. O-O-O {[%clk 0:01:45]}  Qb4 {[%clk 0:01:46]} 17. Bxf5 {[%clk 0:01:18]}  Nxf5 {[%clk 0:01:45]} 18. Nfxd5 {[%clk 0:01:07]}  Qa5 {[%clk 0:00:40]} 19. Nf6+ {[%clk 0:00:57]}  Kf8 {[%clk 0:00:39]} 20. e4 {[%clk 0:00:51]}  Nfd6 {[%clk 0:00:39]} 21. e5 {[%clk 0:00:47]}  Nf5 {[%clk 0:00:38]} 22. e6 {[%clk 0:00:41]}  fxe6 {[%clk 0:00:37]} 23. Rhe1 {[%clk 0:00:41]}  Kf7 {[%clk 0:00:36]} 24. Qe2 {[%clk 0:00:36]}  Rhe8 {[%clk 0:00:17]} 25. Qxc4 {[%clk 0:00:35]} 1-0


[Site "https://www.chess.com"]